[Event "*** Titled Tuesday Blitz"]
[Site "Chess.com"]
[Date "2020.05.19"]
[Round "9"]
[White "SameerMujumdar"]
[Black "pichonazo"]
[Result "1-0"]
[WhiteElo "2304"]
[BlackElo "2500"]
[TimeControl "180+1"]
[EndTime "13:44:56 PDT"]
[Termination "SameerMujumdar won by resignation"]

1. d4 {[%clk 0:03:00.9]} 1... Nf6 {[%clk 0:02:59]} 2. c4 {[%clk 0:02:40.2]} 2...
g6 {[%clk 0:02:58.8]} 3. Nc3 {[%clk 0:02:39.6]} 3... d5 {[%clk 0:02:58.5]} 4.
cxd5 {[%clk 0:02:40.4]} 4... Nxd5 {[%clk 0:02:58.5]} 5. Nf3 {[%clk 0:02:39.1]}
5... Bg7 {[%clk 0:02:57.5]} 6. Bd2 {[%clk 0:02:39]} 6... O-O {[%clk 0:02:57]} 7.
e4 {[%clk 0:02:38.7]} 7... Nxc3 {[%clk 0:02:56.9]} 8. Bxc3 {[%clk 0:02:36.2]}
8... c5 {[%clk 0:02:57.8]} 9. d5 {[%clk 0:02:24.6]} 9... e6 {[%clk 0:02:57.3]}
10. Qd2 {[%clk 0:02:20]} 10... Bxc3 {[%clk 0:02:55.1]} 11. bxc3 {[%clk
0:02:17.4]} 11... exd5 {[%clk 0:02:55.4]} 12. exd5 {[%clk 0:02:17.6]} 12... Bf5
{[%clk 0:02:50.5]} 13. Be2 {[%clk 0:02:14.9]} 13... Nd7 {[%clk 0:02:50.2]} 14.
O-O {[%clk 0:02:12.1]} 14... Qf6 {[%clk 0:02:46.7]} 15. c4 {[%clk 0:02:00.9]}
15... Rfe8 {[%clk 0:02:43.9]} 16. Rfe1 {[%clk 0:01:59.9]} 16... b6 {[%clk
0:02:42.9]} 17. Bf1 {[%clk 0:01:57.2]} 17... Kg7 {[%clk 0:02:35.5]} 18. a4
{[%clk 0:01:49.5]} 18... Rab8 {[%clk 0:02:26.3]} 19. a5 {[%clk 0:01:48]} 19...
Rxe1 {[%clk 0:02:25.4]} 20. Rxe1 {[%clk 0:01:46.2]} 20... b5 {[%clk 0:02:25.5]}
21. cxb5 {[%clk 0:01:44.7]} 21... h6 {[%clk 0:02:21.8]} 22. Bc4 {[%clk
0:01:38.1]} 22... Qd6 {[%clk 0:02:20.9]} 23. Qc3+ {[%clk 0:01:36.3]} 23... Nf6
{[%clk 0:02:20.3]} 24. h3 {[%clk 0:01:35.1]} 24... Kg8 {[%clk 0:02:13.3]} 25.
Qe5 {[%clk 0:01:29.1]} 25... Rd8 {[%clk 0:02:08.6]} 26. Qxd6 {[%clk 0:01:16.6]}
26... Rxd6 {[%clk 0:02:09.5]} 27. Re7 {[%clk 0:01:16.2]} 27... Bd7 {[%clk
0:02:00.7]} 28. Ne5 {[%clk 0:01:11.3]} 28... Be8 {[%clk 0:01:32.9]} 29. Rxa7
{[%clk 0:01:05.1]} 29... Nxd5 {[%clk 0:01:32.3]} 30. b6 {[%clk 0:00:49.8]} 30...
Nxb6 {[%clk 0:01:16.8]} 31. axb6 {[%clk 0:00:50.7]} 31... Rxb6 {[%clk
0:01:16.4]} 32. Ra8 {[%clk 0:00:51.2]} 1-0

[Event "*** Titled Tuesday Blitz"]
[Site "Chess.com"]
[Date "2020.05.19"]
[Round "9"]
[White "stoleriu"]
[Black "guillembaches"]
[Result "0-1"]
[WhiteElo "2539"]
[BlackElo "2435"]
[TimeControl "180+1"]
[EndTime "13:44:59 PDT"]
[Termination "guillembaches won by resignation"]

1. e4 {[%clk 0:03:00.9]} 1... c5 {[%clk 0:02:59.7]} 2. Nf3 {[%clk 0:02:59]} 2...
d6 {[%clk 0:03:00.2]} 3. Bb5+ {[%clk 0:02:56.9]} 3... Bd7 {[%clk 0:02:59.6]} 4.
c4 {[%clk 0:02:56.4]} 4... Nf6 {[%clk 0:02:58.7]} 5. Nc3 {[%clk 0:02:56.1]} 5...
g6 {[%clk 0:02:57.3]} 6. O-O {[%clk 0:02:40.4]} 6... Bg7 {[%clk 0:02:55.8]} 7.
Re1 {[%clk 0:02:40.3]} 7... O-O {[%clk 0:02:50.1]} 8. d4 {[%clk 0:02:40]} 8...
cxd4 {[%clk 0:02:49.8]} 9. Nxd4 {[%clk 0:02:40.9]} 9... a6 {[%clk 0:02:47.6]}
10. Bxd7 {[%clk 0:02:29.3]} 10... Nbxd7 {[%clk 0:02:45.5]} 11. Be3 {[%clk
0:02:30.2]} 11... Rc8 {[%clk 0:02:42.9]} 12. Qe2 {[%clk 0:02:22.1]} 12... Ne5
{[%clk 0:02:36.5]} 13. b3 {[%clk 0:02:12.3]} 13... b5 {[%clk 0:02:33.4]} 14.
cxb5 {[%clk 0:01:47.7]} 14... Rxc3 {[%clk 0:02:27.7]} 15. bxa6 {[%clk
0:01:48.6]} 15... Nxe4 {[%clk 0:02:16.4]} 16. Nb5 {[%clk 0:01:26.9]} 16... Rc8
{[%clk 0:01:57.5]} 17. a4 {[%clk 0:01:02]} 17... Nc5 {[%clk 0:01:48.1]} 18. Nd4
{[%clk 0:00:50.3]} 18... Qb6 {[%clk 0:01:21.6]} 19. b4 {[%clk 0:00:08.9]} 19...
Qxb4 {[%clk 0:01:21.4]} 20. Reb1 {[%clk 0:00:09.4]} 20... Qc4 {[%clk 0:01:21.3]}
0-1

[Event "*** Titled Tuesday Blitz"]
[Site "Chess.com"]
[Date "2020.05.19"]
[Round "9"]
[White "manmanlai1"]
[Black "tan275"]
[Result "1-0"]
[WhiteElo "2359"]
[BlackElo "2202"]
[TimeControl "180+1"]
[EndTime "13:45:00 PDT"]
[Termination "manmanlai1 won by resignation"]

1. e4 {[%clk 0:03:00.9]} 1... c5 {[%clk 0:02:58.6]} 2. Nf3 {[%clk 0:03:00.9]}
2... Nc6 {[%clk 0:02:58.5]} 3. d4 {[%clk 0:03:01.3]} 3... cxd4 {[%clk
0:02:58.8]} 4. Nxd4 {[%clk 0:03:02.2]} 4... g6 {[%clk 0:02:59.3]} 5. Nc3 {[%clk
0:03:01.1]} 5... Bg7 {[%clk 0:02:59.4]} 6. Nde2 {[%clk 0:03:01.5]} 6... Nf6
{[%clk 0:02:58.1]} 7. Nf4 {[%clk 0:03:01.1]} 7... d6 {[%clk 0:02:57.5]} 8. h4
{[%clk 0:03:00.9]} 8... h6 {[%clk 0:02:51.2]} 9. Bc4 {[%clk 0:02:59.3]} 9... Ne5
{[%clk 0:02:35.7]} 10. Bb3 {[%clk 0:02:57.1]} 10... g5 {[%clk 0:02:30.2]} 11.
hxg5 {[%clk 0:02:52.6]} 11... hxg5 {[%clk 0:02:31.1]} 12. Rxh8+ {[%clk
0:02:52.5]} 12... Bxh8 {[%clk 0:02:32]} 13. Nfe2 {[%clk 0:02:41.8]} 13... Bg4
{[%clk 0:02:25.5]} 14. Bxg5 {[%clk 0:02:33]} 14... Qb6 {[%clk 0:02:17.3]} 15.
Qd4 {[%clk 0:02:15.5]} 15... Qa5 {[%clk 0:01:57.9]} 16. Bd2 {[%clk 0:01:52.4]}
16... Qa6 {[%clk 0:01:41.4]} 17. f3 {[%clk 0:01:48.1]} 17... Bxf3 {[%clk
0:01:35.2]} 18. Qa4+ {[%clk 0:01:47.4]} 18... Qxa4 {[%clk 0:00:52.5]} 19. Bxa4+
{[%clk 0:01:48.3]} 19... Kd8 {[%clk 0:00:47]} 20. gxf3 {[%clk 0:01:48.1]} 20...
Nxf3+ {[%clk 0:00:46.7]} 21. Kd1 {[%clk 0:01:48.5]} 21... Ng4 {[%clk 0:00:43.8]}
22. Nc1 {[%clk 0:01:28.5]} 22... Rc8 {[%clk 0:00:26.9]} 23. Nd3 {[%clk
0:01:22.3]} 23... Nf2+ {[%clk 0:00:23.2]} 24. Nxf2 {[%clk 0:01:18.9]} 1-0

[Event "*** Titled Tuesday Blitz"]
[Site "Chess.com"]
[Date "2020.05.19"]
[Round "9"]
[White "Nara_Kh"]
[Black "EnergeticHay"]
[Result "1-0"]
[WhiteElo "2282"]
[BlackElo "2160"]
[TimeControl "180+1"]
[EndTime "13:45:01 PDT"]
[Termination "Nara_Kh won by resignation"]

1. e4 {[%clk 0:03:00.9]} 1... c5 {[%clk 0:03:00.1]} 2. Nf3 {[%clk 0:03:00]} 2...
d6 {[%clk 0:03:00.5]} 3. Bb5+ {[%clk 0:02:59.3]} 3... Nd7 {[%clk 0:03:00.3]} 4.
O-O {[%clk 0:02:58.7]} 4... Nf6 {[%clk 0:03:00.5]} 5. Re1 {[%clk 0:02:56]} 5...
a6 {[%clk 0:03:00.9]} 6. Bd3 {[%clk 0:02:55.6]} 6... b5 {[%clk 0:03:00.5]} 7. c3
{[%clk 0:02:55.7]} 7... c4 {[%clk 0:02:59.4]} 8. Bc2 {[%clk 0:02:55.4]} 8... e6
{[%clk 0:02:58.7]} 9. a4 {[%clk 0:02:53.2]} 9... Bb7 {[%clk 0:02:58.9]} 10. d4
{[%clk 0:02:51.7]} 10... cxd3 {[%clk 0:02:58.3]} 11. Qxd3 {[%clk 0:02:51.4]}
11... Nc5 {[%clk 0:02:57.7]} 12. Qe2 {[%clk 0:02:50.9]} 12... Nfxe4 {[%clk
0:02:52.5]} 13. b4 {[%clk 0:02:35]} 13... d5 {[%clk 0:02:30.9]} 14. bxc5 {[%clk
0:02:29]} 14... Bxc5 {[%clk 0:02:31.8]} 15. Be3 {[%clk 0:02:29.2]} 15... Bd6
{[%clk 0:02:29.9]} 16. axb5 {[%clk 0:02:25.9]} 16... O-O {[%clk 0:02:28.7]} 17.
bxa6 {[%clk 0:02:22.9]} 17... Bc6 {[%clk 0:02:29.1]} 18. Bxe4 {[%clk 0:02:18]}
18... dxe4 {[%clk 0:02:28.1]} 19. Nd4 {[%clk 0:02:18.7]} 19... Bd7 {[%clk
0:02:22.4]} 20. Nd2 {[%clk 0:02:04.6]} 20... f5 {[%clk 0:02:22.1]} 21. f4 {[%clk
0:01:39]} 21... e5 {[%clk 0:02:11.7]} 22. fxe5 {[%clk 0:01:30.5]} 22... Bxe5
{[%clk 0:02:12.6]} 23. Nc4 {[%clk 0:01:30.7]} 23... Bc7 {[%clk 0:02:06.9]} 24.
Bd2 {[%clk 0:01:22]} 24... Rf6 {[%clk 0:01:28.4]} 25. Bg5 {[%clk 0:01:17.3]}
25... h6 {[%clk 0:01:27.1]} 26. Bxf6 {[%clk 0:01:16.6]} 26... Qxf6 {[%clk
0:01:28]} 27. a7 {[%clk 0:01:02.5]} 27... g5 {[%clk 0:01:19.6]} 28. g4 {[%clk
0:00:54]} 28... fxg4 {[%clk 0:01:04.4]} 29. Qxe4 {[%clk 0:00:49]} 29... Rf8
{[%clk 0:01:04.3]} 30. Rf1 {[%clk 0:00:44.8]} 1-0

[Event "*** Titled Tuesday Blitz"]
[Site "Chess.com"]
[Date "2020.05.19"]
[Round "9"]
[White "Hangar-18"]
[Black "talaicito"]
[Result "1-0"]
[WhiteElo "2329"]
[BlackElo "2169"]
[TimeControl "180+1"]
[EndTime "13:45:05 PDT"]
[Termination "Hangar-18 won on time"]

1. b3 {[%clk 0:03:00.5]} 1... e5 {[%clk 0:02:58.2]} 2. Bb2 {[%clk 0:03:01.4]}
2... d6 {[%clk 0:02:58.1]} 3. e3 {[%clk 0:02:58.8]} 3... a5 {[%clk 0:02:58.1]}
4. a3 {[%clk 0:02:58.6]} 4... f5 {[%clk 0:02:55.8]} 5. g3 {[%clk 0:02:55.3]}
5... Nf6 {[%clk 0:02:55.8]} 6. Bg2 {[%clk 0:02:55.8]} 6... Be7 {[%clk
0:02:55.9]} 7. d3 {[%clk 0:02:56.7]} 7... O-O {[%clk 0:02:56.3]} 8. Ne2 {[%clk
0:02:57.2]} 8... Kh8 {[%clk 0:02:56.3]} 9. c4 {[%clk 0:02:57.8]} 9... Qe8 {[%clk
0:02:53.4]} 10. Nbc3 {[%clk 0:02:57.8]} 10... c6 {[%clk 0:02:48.4]} 11. O-O
{[%clk 0:02:58]} 11... Qh5 {[%clk 0:02:45.8]} 12. Qd2 {[%clk 0:02:56.3]} 12...
f4 {[%clk 0:02:33.2]} 13. exf4 {[%clk 0:02:54.3]} 13... Bh3 {[%clk 0:02:33.1]}
14. fxe5 {[%clk 0:02:49.1]} 14... dxe5 {[%clk 0:02:33]} 15. f3 {[%clk
0:02:24.3]} 15... Nbd7 {[%clk 0:02:06]} 16. Ne4 {[%clk 0:02:17.2]} 16... Rad8
{[%clk 0:02:04.6]} 17. Qg5 {[%clk 0:02:13.3]} 17... Qxg5 {[%clk 0:01:43.8]} 18.
Nxg5 {[%clk 0:02:14.2]} 18... Bxg2 {[%clk 0:01:39.6]} 19. Kxg2 {[%clk
0:02:15.1]} 19... Nc5 {[%clk 0:01:39.7]} 20. d4 {[%clk 0:02:05.7]} 20... exd4
{[%clk 0:00:30.5]} 21. Nxd4 {[%clk 0:02:06.3]} 21... Rd6 {[%clk 0:00:14.7]} 22.
Rae1 {[%clk 0:01:59.9]} 22... Bd8 {[%clk 0:00:12.4]} 23. Re2 {[%clk 0:01:49]}
23... Bb6 {[%clk 0:00:10.1]} 24. b4 {[%clk 0:01:42.5]} 24... axb4 {[%clk
0:00:02.1]} 25. axb4 {[%clk 0:01:43.4]} 25... Nd3 {[%clk 0:00:02]} 26. c5 {[%clk
0:01:40.8]} 1-0

[Event "*** Titled Tuesday Blitz"]
[Site "Chess.com"]
[Date "2020.05.19"]
[Round "9"]
[White "Gromes7"]
[Black "Charlottemillard17"]
[Result "1-0"]
[WhiteElo "2010"]
[BlackElo "1417"]
[TimeControl "180+1"]
[EndTime "13:45:05 PDT"]
[Termination "Gromes7 won by checkmate"]

1. d4 {[%clk 0:03:00.9]} 1... d5 {[%clk 0:02:59.1]} 2. Nf3 {[%clk 0:03:00.5]}
2... Nf6 {[%clk 0:02:55]} 3. g3 {[%clk 0:03:00.5]} 3... e6 {[%clk 0:02:52.9]} 4.
Bg2 {[%clk 0:03:00.3]} 4... Be7 {[%clk 0:02:53.2]} 5. O-O {[%clk 0:03:00.3]}
5... O-O {[%clk 0:02:53.2]} 6. c4 {[%clk 0:03:00.8]} 6... c6 {[%clk 0:02:49.6]}
7. b3 {[%clk 0:02:59.9]} 7... Nbd7 {[%clk 0:02:49.5]} 8. Bb2 {[%clk 0:02:58.8]}
8... h6 {[%clk 0:02:47.3]} 9. Qc2 {[%clk 0:02:57.3]} 9... Re8 {[%clk 0:02:46.4]}
10. Nc3 {[%clk 0:02:55.4]} 10... Nf8 {[%clk 0:02:45.3]} 11. e4 {[%clk
0:02:50.2]} 11... dxe4 {[%clk 0:02:37]} 12. Nxe4 {[%clk 0:02:50]} 12... Ng6
{[%clk 0:02:34.2]} 13. Rfd1 {[%clk 0:02:38.9]} 13... Nxe4 {[%clk 0:02:23.7]} 14.
Qxe4 {[%clk 0:02:37.1]} 14... Bd7 {[%clk 0:02:20.1]} 15. Ne5 {[%clk 0:02:24.4]}
15... Nxe5 {[%clk 0:02:16.6]} 16. dxe5 {[%clk 0:02:25.3]} 16... Qc7 {[%clk
0:02:15.8]} 17. Rd3 {[%clk 0:02:12.7]} 17... Bc8 {[%clk 0:02:11.5]} 18. Rad1
{[%clk 0:02:05.2]} 18... b6 {[%clk 0:02:09.7]} 19. Qxc6 {[%clk 0:02:00.1]} 19...
Qxc6 {[%clk 0:01:38.5]} 20. Bxc6 {[%clk 0:02:01]} 20... Bb7 {[%clk 0:01:30.4]}
21. Bxb7 {[%clk 0:01:59.8]} 21... Rab8 {[%clk 0:01:29.8]} 22. Bc6 {[%clk
0:01:58.4]} 22... Rec8 {[%clk 0:01:29.4]} 23. Bg2 {[%clk 0:01:50.8]} 23... b5
{[%clk 0:01:26.5]} 24. Rd7 {[%clk 0:01:48.9]} 24... Bg5 {[%clk 0:01:24.9]} 25.
f4 {[%clk 0:01:46.9]} 25... Bd8 {[%clk 0:01:13.6]} 26. Bb7 {[%clk 0:01:46.8]}
26... Bb6+ {[%clk 0:01:09]} 27. Bd4 {[%clk 0:01:36.5]} 27... Bxd4+ {[%clk
0:01:06.4]} 28. R1xd4 {[%clk 0:01:36.2]} 28... Re8 {[%clk 0:01:05.2]} 29. cxb5
{[%clk 0:01:32.5]} 29... f6 {[%clk 0:01:00.7]} 30. exf6 {[%clk 0:01:28.6]} 30...
gxf6 {[%clk 0:01:00.6]} 31. Rc7 {[%clk 0:01:21]} 31... e5 {[%clk 0:00:59.3]} 32.
Rdd7 {[%clk 0:01:18.8]} 32... e4 {[%clk 0:00:56.2]} 33. Bd5+ {[%clk 0:01:18.1]}
33... Kf8 {[%clk 0:00:52.6]} 34. Rh7 {[%clk 0:01:16.6]} 34... e3 {[%clk
0:00:47.8]} 35. Rh8# {[%clk 0:01:15.2]} 1-0

[Event "*** Titled Tuesday Blitz"]
[Site "Chess.com"]
[Date "2020.05.19"]
[Round "9"]
[White "BeanScreen"]
[Black "Marty435"]
[Result "1-0"]
[WhiteElo "2604"]
[BlackElo "2410"]
[TimeControl "180+1"]
[EndTime "13:45:12 PDT"]
[Termination "BeanScreen won by checkmate"]

1. e4 {[%clk 0:03:00.9]} 1... c6 {[%clk 0:03:00.6]} 2. d4 {[%clk 0:03:00.9]}
2... d5 {[%clk 0:03:01.2]} 3. exd5 {[%clk 0:03:01.8]} 3... cxd5 {[%clk
0:03:02.1]} 4. Bd3 {[%clk 0:03:02]} 4... Nc6 {[%clk 0:03:02.5]} 5. c3 {[%clk
0:03:02.5]} 5... Nf6 {[%clk 0:03:03.1]} 6. Bf4 {[%clk 0:03:02.7]} 6... g6 {[%clk
0:03:01.4]} 7. Nd2 {[%clk 0:03:02.5]} 7... Bg7 {[%clk 0:03:01.1]} 8. Ngf3 {[%clk
0:03:02.6]} 8... O-O {[%clk 0:02:57.4]} 9. O-O {[%clk 0:03:02.7]} 9... Bf5
{[%clk 0:02:57.2]} 10. Bxf5 {[%clk 0:03:03]} 10... gxf5 {[%clk 0:02:58.1]} 11.
Ne5 {[%clk 0:03:03.9]} 11... e6 {[%clk 0:02:54.1]} 12. Qf3 {[%clk 0:03:03.7]}
12... Ne4 {[%clk 0:02:46.5]} 13. Nxe4 {[%clk 0:03:03.6]} 13... fxe4 {[%clk
0:02:39.1]} 14. Qh5 {[%clk 0:03:03]} 14... Nxe5 {[%clk 0:02:35.2]} 15. Bxe5
{[%clk 0:03:02]} 15... f6 {[%clk 0:02:28.6]} 16. Bf4 {[%clk 0:03:01.3]} 16...
Qe8 {[%clk 0:02:28.2]} 17. Qg4 {[%clk 0:03:00.6]} 17... f5 {[%clk 0:02:16.6]}
18. Qh4 {[%clk 0:02:56.4]} 18... Qg6 {[%clk 0:02:11.7]} 19. Rae1 {[%clk
0:02:55.7]} 19... Bf6 {[%clk 0:02:07.3]} 20. Qh3 {[%clk 0:02:55.2]} 20... Kh8
{[%clk 0:02:04.2]} 21. f3 {[%clk 0:02:49.7]} 21... Rg8 {[%clk 0:02:01.3]} 22.
fxe4 {[%clk 0:02:49]} 22... dxe4 {[%clk 0:01:59.2]} 23. Re3 {[%clk 0:02:49]}
23... Qg4 {[%clk 0:01:48]} 24. Rf2 {[%clk 0:02:40.9]} 24... Qd1+ {[%clk
0:01:29.6]} 25. Rf1 {[%clk 0:02:41]} 25... Qg4 {[%clk 0:01:30.2]} 26. Rf2 {[%clk
0:02:40]} 26... Rac8 {[%clk 0:01:24.1]} 27. Qh6 {[%clk 0:02:35.2]} 27... Rg6
{[%clk 0:01:18.7]} 28. Qh3 {[%clk 0:02:34.9]} 28... Qd1+ {[%clk 0:01:07.6]} 29.
Rf1 {[%clk 0:02:35]} 29... Qc2 {[%clk 0:01:00.8]} 30. Rg3 {[%clk 0:02:13.1]}
30... Rxg3 {[%clk 0:00:50.6]} 31. hxg3 {[%clk 0:02:14]} 31... Qxb2 {[%clk
0:00:45.5]} 32. d5 {[%clk 0:02:13.8]} 32... exd5 {[%clk 0:00:25.1]} 33. Qxf5
{[%clk 0:02:13.6]} 33... Qxc3 {[%clk 0:00:24.6]} 34. Kh2 {[%clk 0:02:05.4]}
34... Rc6 {[%clk 0:00:11.5]} 35. Bg5 {[%clk 0:02:02.3]} 35... Kg7 {[%clk
0:00:06]} 36. Qxd5 {[%clk 0:02:00]} 36... Qc4 {[%clk 0:00:01.7]} 37. Bxf6+
{[%clk 0:01:59.3]} 37... Kg6 {[%clk 0:00:01.5]} 38. Qg5+ {[%clk 0:01:59.3]}
38... Kf7 {[%clk 0:00:02.1]} 39. Qg7+ {[%clk 0:01:59.6]} 39... Ke6 {[%clk
0:00:02.3]} 40. Qe7+ {[%clk 0:01:59.8]} 40... Kd5 {[%clk 0:00:02.9]} 41. Qe5#
{[%clk 0:01:59.9]} 1-0

[Event "*** Titled Tuesday Blitz"]
[Site "Chess.com"]
[Date "2020.05.19"]
[Round "9"]
[White "Camels1981"]
[Black "barbara25"]
[Result "0-1"]
[WhiteElo "2325"]
[BlackElo "2210"]
[TimeControl "180+1"]
[EndTime "13:45:13 PDT"]
[Termination "barbara25 won by resignation"]

1. e4 {[%clk 0:03:00.9]} 1... c5 {[%clk 0:02:59.7]} 2. Nf3 {[%clk 0:02:59.9]}
2... d6 {[%clk 0:03:00]} 3. d4 {[%clk 0:03:00.3]} 3... cxd4 {[%clk 0:03:00.9]}
4. Nxd4 {[%clk 0:03:00.1]} 4... Nf6 {[%clk 0:03:01.3]} 5. Nc3 {[%clk 0:03:00.7]}
5... a6 {[%clk 0:03:01.7]} 6. Bc4 {[%clk 0:03:01.3]} 6... e6 {[%clk 0:03:01.5]}
7. Bb3 {[%clk 0:03:01.9]} 7... Be7 {[%clk 0:03:01.8]} 8. O-O {[%clk 0:03:01.6]}
8... O-O {[%clk 0:03:02.4]} 9. f4 {[%clk 0:03:01]} 9... Nc6 {[%clk 0:03:02.5]}
10. Kh1 {[%clk 0:03:01.5]} 10... Na5 {[%clk 0:03:02.5]} 11. Be3 {[%clk
0:03:00.3]} 11... b5 {[%clk 0:03:02.5]} 12. Qf3 {[%clk 0:02:59.3]} 12... Bb7
{[%clk 0:03:02.4]} 13. a3 {[%clk 0:02:22]} 13... Rc8 {[%clk 0:02:55.7]} 14. Nxe6
{[%clk 0:02:10.8]} 14... fxe6 {[%clk 0:02:52.4]} 15. Bxe6+ {[%clk 0:02:09.9]}
15... Kh8 {[%clk 0:02:52.3]} 16. Bxc8 {[%clk 0:02:10.4]} 16... Qxc8 {[%clk
0:02:52.4]} 17. Rad1 {[%clk 0:01:53.8]} 17... Nc4 {[%clk 0:02:50.5]} 18. Bc1
{[%clk 0:01:44.8]} 18... Qg4 {[%clk 0:02:20.6]} 19. b3 {[%clk 0:01:27.1]} 19...
Qxf3 {[%clk 0:02:19.1]} 20. gxf3 {[%clk 0:01:26.7]} 20... Nb6 {[%clk 0:02:18.1]}
21. f5 {[%clk 0:01:13.5]} 21... Rc8 {[%clk 0:02:13.8]} 22. Bb2 {[%clk
0:01:06.4]} 22... Kg8 {[%clk 0:02:07.9]} 23. Rd2 {[%clk 0:00:58.2]} 23... Kf7
{[%clk 0:02:07.7]} 24. Nd1 {[%clk 0:00:52.2]} 24... g6 {[%clk 0:02:01.9]} 25.
fxg6+ {[%clk 0:00:42.8]} 25... hxg6 {[%clk 0:02:01.2]} 26. Re1 {[%clk
0:00:35.3]} 26... Nh5 {[%clk 0:01:56.2]} 27. Ne3 {[%clk 0:00:34.1]} 27... Nf4
{[%clk 0:01:53.1]} 28. Ng4 {[%clk 0:00:31.4]} 28... Nd7 {[%clk 0:01:43.1]} 29.
Nh6+ {[%clk 0:00:29.9]} 29... Ke8 {[%clk 0:01:42.7]} 30. Rg1 {[%clk 0:00:29.1]}
30... g5 {[%clk 0:01:40]} 31. Nf5 {[%clk 0:00:27.8]} 31... Ne5 {[%clk
0:01:22.4]} 32. h4 {[%clk 0:00:27]} 32... Nxf3 {[%clk 0:01:19.2]} 33. Rf2 {[%clk
0:00:26.1]} 33... Nxg1 {[%clk 0:01:18.6]} 0-1

[Event "*** Titled Tuesday Blitz"]
[Site "Chess.com"]
[Date "2020.05.19"]
[Round "9"]
[White "SaqoChess_Twitch"]
[Black "carvillshill"]
[Result "0-1"]
[WhiteElo "2411"]
[BlackElo "2574"]
[TimeControl "180+1"]
[EndTime "13:45:21 PDT"]
[Termination "carvillshill won by resignation"]

1. d4 {[%clk 0:03:00.9]} 1... Nf6 {[%clk 0:02:59.9]} 2. c4 {[%clk 0:03:01]} 2...
g6 {[%clk 0:03:00.2]} 3. Nc3 {[%clk 0:03:01.4]} 3... d5 {[%clk 0:03:00.2]} 4.
Bf4 {[%clk 0:03:00.1]} 4... Bg7 {[%clk 0:02:59.4]} 5. e3 {[%clk 0:03:00]} 5...
O-O {[%clk 0:02:59.4]} 6. Rc1 {[%clk 0:02:59.9]} 6... dxc4 {[%clk 0:02:43.5]} 7.
Bxc4 {[%clk 0:02:58.1]} 7... Nbd7 {[%clk 0:02:43.6]} 8. Nge2 {[%clk 0:02:42]}
8... c5 {[%clk 0:02:39.4]} 9. dxc5 {[%clk 0:02:33]} 9... Nxc5 {[%clk 0:02:36.1]}
10. Qxd8 {[%clk 0:02:31.6]} 10... Rxd8 {[%clk 0:02:36]} 11. O-O {[%clk
0:02:20.8]} 11... b6 {[%clk 0:02:35.7]} 12. b4 {[%clk 0:02:13.5]} 12... Nd3
{[%clk 0:02:31]} 13. Rcd1 {[%clk 0:02:07.2]} 13... Bf5 {[%clk 0:02:30.9]} 14.
Bc7 {[%clk 0:02:02.8]} 14... Rd7 {[%clk 0:02:26.7]} 15. Bg3 {[%clk 0:01:56.3]}
15... Nxb4 {[%clk 0:02:23.8]} 16. a3 {[%clk 0:01:51.4]} 16... Nc2 {[%clk
0:02:07.3]} 17. a4 {[%clk 0:01:47.8]} 17... Rad8 {[%clk 0:02:04.7]} 18. Rxd7
{[%clk 0:01:46.1]} 18... Rxd7 {[%clk 0:02:05]} 19. e4 {[%clk 0:01:42.3]} 19...
Nxe4 {[%clk 0:02:02.3]} 20. Nxe4 {[%clk 0:01:39.5]} 20... Bxe4 {[%clk
0:02:01.9]} 21. f3 {[%clk 0:01:39.6]} 21... Bc6 {[%clk 0:01:53.1]} 22. Bb5
{[%clk 0:01:25.5]} 22... Bxb5 {[%clk 0:01:49.2]} 23. axb5 {[%clk 0:01:26.4]}
23... Na3 {[%clk 0:01:48.8]} 24. Rc1 {[%clk 0:01:22.3]} 24... h6 {[%clk
0:01:45.8]} 25. Rc8+ {[%clk 0:01:14.9]} 25... Kh7 {[%clk 0:01:45.6]} 26. Nc3
{[%clk 0:01:15.5]} 26... Bxc3 {[%clk 0:01:43.6]} 27. Rxc3 {[%clk 0:01:16.4]}
27... Nxb5 {[%clk 0:01:44]} 28. Rc8 {[%clk 0:01:16.4]} 28... g5 {[%clk
0:01:39.9]} 29. h4 {[%clk 0:01:08.6]} 29... f6 {[%clk 0:01:29.5]} 30. h5 {[%clk
0:01:08.1]} 30... Nd4 {[%clk 0:01:29.3]} 31. Ra8 {[%clk 0:00:56.4]} 31... Ne2+
{[%clk 0:01:27.8]} 32. Kh2 {[%clk 0:00:56.9]} 32... Nxg3 {[%clk 0:01:27.9]} 33.
Kxg3 {[%clk 0:00:57.8]} 33... Rb7 {[%clk 0:01:21.1]} 34. Kg4 {[%clk 0:00:55.6]}
34... b5 {[%clk 0:01:21.2]} 35. Kf5 {[%clk 0:00:46.3]} 35... b4 {[%clk
0:01:20.6]} 36. Rf8 {[%clk 0:00:46.4]} 36... Kg7 {[%clk 0:01:19.4]} 37. Rd8
{[%clk 0:00:42.3]} 37... b3 {[%clk 0:01:19]} 38. Rd1 {[%clk 0:00:43.2]} 38... b2
{[%clk 0:01:17.4]} 39. Rb1 {[%clk 0:00:44.1]} 39... a5 {[%clk 0:01:17.6]} 40.
Ke6 {[%clk 0:00:44.7]} 40... a4 {[%clk 0:01:17.7]} 41. Kd5 {[%clk 0:00:45.6]}
41... a3 {[%clk 0:01:18.2]} 42. Kc6 {[%clk 0:00:46.5]} 42... a2 {[%clk 0:01:17]}
43. Kxb7 {[%clk 0:00:47.4]} 43... axb1=Q {[%clk 0:01:17]} 0-1

[Event "*** Titled Tuesday Blitz"]
[Site "Chess.com"]
[Date "2020.05.19"]
[Round "9"]
[White "Kobalia"]
[Black "gena217"]
[Result "1-0"]
[WhiteElo "2811"]
[BlackElo "2861"]
[TimeControl "180+1"]
[EndTime "13:45:22 PDT"]
[Termination "Kobalia won by resignation"]

1. e4 {[%clk 0:03:00.9]} 1... c6 {[%clk 0:02:58.5]} 2. d4 {[%clk 0:03:00.1]}
2... d5 {[%clk 0:02:59.4]} 3. exd5 {[%clk 0:03:00.6]} 3... cxd5 {[%clk
0:02:59.8]} 4. Bd3 {[%clk 0:03:01.2]} 4... Nc6 {[%clk 0:02:58.2]} 5. c3 {[%clk
0:03:01.4]} 5... Nf6 {[%clk 0:02:58.7]} 6. Bf4 {[%clk 0:03:00.3]} 6... Bg4
{[%clk 0:02:59.3]} 7. Qb3 {[%clk 0:02:59.9]} 7... Qd7 {[%clk 0:02:59.8]} 8. Nd2
{[%clk 0:03:00.1]} 8... e6 {[%clk 0:03:00.1]} 9. Ngf3 {[%clk 0:03:00.2]} 9...
Bd6 {[%clk 0:02:59.9]} 10. Bxd6 {[%clk 0:03:00.3]} 10... Qxd6 {[%clk 0:03:00.8]}
11. O-O {[%clk 0:03:00.4]} 11... O-O {[%clk 0:02:57.4]} 12. Rae1 {[%clk
0:02:59.5]} 12... Qc7 {[%clk 0:02:51.8]} 13. Ne5 {[%clk 0:02:59.5]} 13... Nxe5
{[%clk 0:02:46.3]} 14. dxe5 {[%clk 0:02:50]} 14... Nd7 {[%clk 0:02:45.8]} 15.
Qc2 {[%clk 0:02:48.5]} 15... Nxe5 {[%clk 0:02:36.1]} 16. Bxh7+ {[%clk
0:02:47.3]} 16... Kh8 {[%clk 0:02:36.5]} 17. f4 {[%clk 0:02:34.9]} 17... Nd7
{[%clk 0:02:15.4]} 18. h3 {[%clk 0:02:29.5]} 18... Bh5 {[%clk 0:01:59.5]} 19. g4
{[%clk 0:02:25.5]} 19... g6 {[%clk 0:01:51.2]} 20. gxh5 {[%clk 0:02:23]} 20...
Kxh7 {[%clk 0:01:49.9]} 21. hxg6+ {[%clk 0:02:23.1]} 21... Kg7 {[%clk
0:01:31.9]} 22. Nf3 {[%clk 0:02:05.3]} 22... Qxf4 {[%clk 0:01:19.8]} 23. Qg2
{[%clk 0:02:04.3]} 23... Qh6 {[%clk 0:01:05.5]} 24. gxf7+ {[%clk 0:01:56]} 24...
Kh8 {[%clk 0:01:05.8]} 25. Ng5 {[%clk 0:01:51.6]} 25... e5 {[%clk 0:01:06.2]}
26. Qg4 {[%clk 0:01:41]} 26... e4 {[%clk 0:01:00.7]} 27. Rf5 {[%clk 0:01:23.8]}
27... Qg6 {[%clk 0:01:00]} 28. Kh1 {[%clk 0:01:16.4]} 28... Rac8 {[%clk
0:00:49.3]} 29. Rg1 {[%clk 0:01:14]} 29... Rc6 {[%clk 0:00:49.6]} 30. Rxd5
{[%clk 0:01:02.5]} 30... Nb6 {[%clk 0:00:42.4]} 31. Re5 {[%clk 0:00:55.9]} 1-0